Cogmind - Beta 11.1 @@@ ROGUE MODE // 2022.09.13 @ 17:35:48 Player: deadnoob Result: Destroyed by B-86 Titan with Hardcell Cannon Performance ------------- Evolutions (5) 2500 Regions Visited (22) 4400 Robots Destroyed (235) 1175 Value Destroyed (8103) 8103 Prototype IDs (52) 1040 Alien Tech Used (2) 400 Bonus (4467) 4467 TOTAL SCORE: 22085 Bonus ------- High Alert Combat Kills 1727 Follower Combat Kills 2260 Network Hubs Disabled 200 Met Data Miner 300 Met Zhirov 300 Built Enhanced Grunts 300 Friendly Fire -620 Cogmind --------- Core Integrity 0/1000 Matter 30/300 Energy 600/600 System Corruption 19% Temperature Cool (9) Movement Core (1400) Ox27 Location -4/Proximity Caves Parts ------- > --- POWER (2) -------- (None) > --- PROPULSION (6) --- (None) > --- UTILITY (7) ------ Huge Storage Unit Advanced Energy Well > --- WEAPON (2) ------- (None) > --- INVENTORY (25) --- Improved Particle Charger Improved Transmission Jammer Hardened Light Armor Plating Mapping Drone Bay (3/3) High-powered Shock Rifle Beamcaster Wave Gun Cooled Plasma Rifle Long-range Proton Cannon Long-range Proton Cannon Long-range Proton Cannon Long-range Proton Cannon Advanced Plasma Cannon Heavy Mass Driver Precision Grenade Launcher Remote Datajack Improved Remote Datajack Dirty Bomb Trap Peak State ------------ > --- POWER ------------ Light Fission Core Antimatter Reactor > --- PROPULSION ------- Centrium Heavy Treads Centrium Heavy Treads Centrium Heavy Treads > --- UTILITY ---------- Advanced Heat Sink Advanced Cooling System Medium Storage Unit Transmission Jammer Layered Medium Armor Plating Centrium Medium Armor Plating Centrium Medium Armor Plating > --- WEAPON ----------- Wave Gun Wave Gun > --- INVENTORY -------- Wave Gun Wave Gun Heavy Plasma Cannon Advanced Plasma Cannon Gauss Cannon Precision Grenade Launcher Precision Grenade Launcher Remote Datajack [Rating: 121] Favorites ----------- Power Improved Ion Engine Engine Improved Ion Engine Power Core Light Fission Core Reactor Fusion Reactor Propulsion Light Treads Treads Light Treads Leg Carbon-fiber Leg Wheel Wheel Hover Unit Cooled Airjet Flight Unit Improved Cesium-ion Thruster Utility Large Storage Unit Device Improved Heat Sink Storage Large Storage Unit Processor Improved Targeting Computer Hackware System Shield Protection Centrium Medium Armor Plating Weapon KE Penetrator Energy Gun Wave Gun Energy Cannon Long-range Proton Cannon Ballistic Gun KE Penetrator Ballistic Cannon Gauss Cannon Launcher Precision Grenade Launcher Special Weapon Remote Datajack Slashing Weapon Great Axe Special Melee Weapon Advanced Datajack Build | -11 -10 -10 -9 -9 -8 -7 -7 -7 -7 -7 -7 -6 -6 -6 -6 -6 -6 -5 -5 -5 -5 -4 ------- Run | Scr Mat Min Mat Sto Mat Fac Was Fac Low Low Dat Pro Fac Ext Cet Arc Hub Fac Upp Upp Zhi Pro Slots Evolved 10 | . . . 2 . 2 2 . . . . . . 2 . . . . 2 . . . . Power 1 | . . . . . . . . . . . . . 1 . . . . . . . . . Propulsion 4 | . . . 1 . . 2 . . . . . . 1 . . . . . . . . . Utility 5 | . . . 1 . 2 . . . . . . . . . . . . 2 . . . . Weapon . | . . . . . . . . . . . . . . . . . . . . . . . Parts Attached 355 | . 11 1 12 28 27 30 . 19 6 4 . 9 8 27 21 7 16 64 22 15 22 6 Power 43 | . 1 . 1 6 3 2 . 1 . . . 2 2 . 1 1 2 10 4 4 3 . Engine 25 | . 1 . 1 6 3 2 . 1 . . . 1 1 . . 1 . . 3 4 1 . Core 15 | . . . . . . . . . . . . 1 1 . 1 . 1 10 1 . . . Reactor 3 | . . . . . . . . . . . . . . . . . 1 . . . 2 . Propulsion 74 | . 3 . 6 9 7 10 . 7 . . . . 1 . 4 . 1 13 5 5 3 . Treads 46 | . 2 . 6 8 6 1 . . . . . . . . 2 . 1 12 4 2 2 . Leg 6 | . . . . . . . . . . . . . . . 2 . . . 1 3 . . Wheel 1 | . 1 . . . . . . . . . . . . . . . . . . . . . Hover 3 | . . . . . . 1 . . . . . . . . . . . 1 . . 1 . Flight 18 | . . . . 1 1 8 . 7 . . . . 1 . . . . . . . . . Utility 95 | . 2 . 3 5 10 9 . 4 2 2 . 2 1 9 8 . 2 19 6 4 6 1 Device 53 | . . . 1 1 5 3 . 3 2 2 . 1 1 7 4 . 2 9 6 2 3 1 Storage 6 | . 1 . . . . 2 . . . . . . . . 1 . . 1 . . 1 . Processor 9 | . . . . . 1 2 . . . . . 1 . . 2 . . 3 . . . . Hackware 3 | . . . . . . 2 . 1 . . . . . . . . . . . . . . Protection 24 | . 1 . 2 4 4 . . . . . . . . 2 1 . . 6 . 2 2 . Artifact . | . . . . . . . . . . . . . . . . . . . . . . . Weapon 143 | . 5 1 2 8 7 9 . 7 4 2 . 5 4 18 8 6 11 22 7 2 10 5 Energy Gun 25 | . 1 1 1 . . 2 . . . . . . 1 1 1 . . 5 5 1 3 3 Energy Cannon 21 | . . . . . . . . 1 1 1 . . 1 3 4 . 5 . 1 . 3 1 Ballistic Gun 43 | . 3 . 1 7 3 1 . . 2 1 . . 1 5 . 4 4 11 . . . . Ballistic Cannon 1 | . . . . . . . . . . . . . . . . . . 1 . . . . Launcher 29 | . 1 . . 1 2 3 . 5 . . . 2 . 1 3 . 2 4 1 1 2 1 Special Weapon 8 | . . . . . . . . . . . . 1 . 3 . 1 . 1 . . 2 . Impact Weapon . | . . . . . . . . . . . . . . . . . . . . . . . Slashing Weapon 15 | . . . . . 2 3 . 1 1 . . 2 1 5 . . . . . . . . Piercing Weapon . | . . . . . . . . . . . . . . . . . . . . . . . Special Melee Weapon 1 | . . . . . . . . . . . . . . . . 1 . . . . . . Unidentified Prototypes 23 | . 1 . . 5 2 3 . 1 . . . . 1 . 2 . 1 2 . . 4 1 Corrupted Parts 1 | . . . . . . . . . . . . . . . . . 1 . . . . . System Corruption 4 | . . . . . . . . . . . . . . . . . 4 . . . . . Parts Lost 76 | . . 1 1 2 6 4 . . . . . . . 2 . 1 5 29 6 . 8 11 Power 15 | . . . . 2 1 . . . . . . . . . . 1 . 7 1 . 2 1 Propulsion 18 | . . . . . . 1 . . . . . . . . . . 1 8 3 . 2 3 Utility 30 | . . . 1 . 5 2 . . . . . . . 2 . . 2 10 1 . 2 5 Weapon 13 | . . 1 . . . 1 . . . . . . . . . . 2 4 1 . 2 2 Highest Loss Streak 13 | . . 1 1 1 3 4 . . . . . . . 1 . 1 3 12 13 . 8 5 To Critical Strikes 1 | . . . . . . . . . . . . . . . . . . . 1 . . . Average Slot Usage (%) 87 | . 98 100 96 99 93 92 92 98 99 100 100 99 95 96 81 85 67 86 73 86 75 47 Engine 6 | . 14 14 11 10 8 7 7 7 7 7 7 6 . 6 6 5 2 . 5 7 5 . Core 2 | . . . . . . . . . . . . . 12 6 5 6 6 8 1 2 . . Treads 19 | . 25 28 29 32 26 15 . . . . . . . . 11 13 18 25 20 20 22 8 Leg 1 | . . . . . . . . . . . . . . . 1 13 1 . 1 4 . . Flight 6 | . . . . . . 13 38 37 38 38 38 38 40 40 9 . . . . . . . Device 12 | . . . 11 11 16 11 7 4 22 23 23 22 20 17 7 . 5 14 19 19 13 11 Storage 8 | . 14 14 11 11 9 7 7 7 7 7 7 7 6 6 4 6 6 5 5 5 5 11 Processor 4 | . . . . . 2 8 7 7 7 7 7 7 6 5 6 13 1 6 5 5 5 1 Protection 7 | . 12 14 11 10 12 5 . . . . . . . 1 12 13 6 11 . 4 5 1 Energy Gun 3 | . 13 6 11 . . 1 . . . . . . . . 2 . . 2 7 8 5 2 Ballistic Gun 8 | . 14 21 11 20 12 8 . . 6 6 7 3 1 4 . 9 11 6 2 . . . Slashing Weapon 1 | . . . . . 4 2 7 7 6 7 7 6 2 3 . . . . . . . . Naked Turns . | . . . . . . . . . . . . . . . . . . . . . . . Heaviest Build 147 | 11 34 35 39 42 52 64 20 30 30 30 30 30 35 46 51 50 54 139 136 147 140 122 Greatest Support 240 | 20 40 40 60 63 63 60 26 30 30 30 30 30 36 36 160 160 240 240 161 175 175 68 Greatest Overweight (x) 27 | . 1 . . . 1 1 . . . . . . . 1 . . . 1 1 1 1 27 Average Overweight (x) . | . . . . . . . . . . . . . . . . . . . . . . 2 Largest Inventory Capacity 25 | . 15 15 15 15 15 20 10 10 10 10 10 10 10 10 10 10 10 25 25 25 25 25 Average Capacity 16 | . 12 15 15 15 15 14 10 10 10 10 10 10 10 10 8 10 10 18 25 25 25 25 Most Carried 25 | . 15 15 15 15 15 15 10 10 10 10 10 10 10 10 10 10 10 24 25 25 25 20 Average Carried 14 | . 10 14 14 14 14 13 10 9 9 9 10 9 9 9 8 9 9 14 21 24 23 19 Final Capacity 25 | 8 15 15 15 15 15 10 10 10 10 10 10 10 10 10 10 10 10 25 25 25 25 25 Final Carried 25 | 6 15 15 15 15 15 10 10 10 9 10 10 10 9 10 10 10 9 23 25 25 20 19 Class Distribution -------------------- 48% | Scavenger-Mutant 29% | Mutant 8% | Sprinter 4% | Scavenger-Skirmisher 4% | Hacker-Sprinter Dominant Class ---------------- Mutant | -10/Materials Mutant | -10/Mines Mutant | -9/Materials Mutant | -9/Storage Mutant | -8/Materials Scavenger-Mutant | -7/Factory Hacker-Sprinter | -7/Waste Hacker-Sprinter | -7/Factory Sprinter | -7/Lower Caves Sprinter | -7/Lower Caves Sprinter | -7/Data Miner Sprinter | -6/Proximity Caves Scavenger-Scout | -6/Factory Sprinter | -6/Extension Scavenger-Mutant | -6/Cetus Scavenger-Mutant | -6/Archives Scavenger-Skirmisher | -6/Hub_04(d) Scavenger-Mutant | -5/Factory Scavenger-Mutant | -5/Upper Caves Scavenger-Mutant | -5/Upper Caves Scavenger-Mutant | -5/Zhirov Mutant | -4/Proximity Caves Resources | -11 -10 -10 -9 -9 -8 -7 -7 -7 -7 -7 -7 -6 -6 -6 -6 -6 -6 -5 -5 -5 -5 -4 ----------- Run | Scr Mat Min Mat Sto Mat Fac Was Fac Low Low Dat Pro Fac Ext Cet Arc Hub Fac Upp Upp Zhi Pro Matter Collected 6727 | 200 121 189 223 696 357 540 . 96 . 150 . 281 . 567 278 4 481 1583 576 238 137 10 Remotely 461 | . . . . . 121 340 . . . . . . . . . . . . . . . . Salvage Created 9819 | . 294 232 451 1383 1257 858 . 23 51 11 . 138 . 217 88 40 1187 2072 642 459 369 47 Parts 511 | . 16 18 26 82 52 45 . 2 6 1 . 12 . 9 6 4 57 122 14 25 6 8 Haulers Intercepted 10 | . 1 . . 4 1 1 . . . . . . . . . . 3 . . . . . Recyclers Shooed 3 | . . . . . . 2 . . . . . . . . . . 1 . . . . . Parts Field Recycled . | . . . . . . . . . . . . . . . . . . . . . . . Retrieved Matter . | . . . . . . . . . . . . . . . . . . . . . . . Parts Self-Destructed 46 | . . . . . . . . . 3 . . 19 . . . . . . 10 5 4 5 Prevented . | . . . . . . . . . . . . . . . . . . . . . . . Kills | -11 -10 -10 -9 -9 -8 -7 -7 -7 -7 -7 -7 -6 -6 -6 -6 -6 -6 -5 -5 -5 -5 -4 ------- Run | Scr Mat Min Mat Sto Mat Fac Was Fac Low Low Dat Pro Fac Ext Cet Arc Hub Fac Upp Upp Zhi Pro Combat Hostiles Destroyed 171 | . 11 5 11 24 15 11 . . 4 . . 8 . 6 3 . 11 36 11 10 . 5 Melee 15 | . . . . . 11 . . . . . . 1 . 3 . . . . . . . . Guns 104 | . 6 5 11 24 4 6 . . . . . . . . . . 7 27 7 6 . 1 Cannons 2 | . . . . . . . . . . . . . . . . . 1 . 1 . . . AOE 48 | . 5 . . . . 5 . . 4 . . 7 . 3 3 . 3 7 3 4 . 4 Classes Destroyed 18 | . 4 . 1 2 2 3 . . . . . 1 . . . . 1 3 . 1 . . Worker 16 | . 1 2 . . . . . . . . . . . . . . 9 4 . . . . Builder 11 | . . . . . . 4 . . . . . . . . . . 3 4 . . . . Tunneler 1 | . . . . . . . . . . . . . . . . . . 1 . . . . Hauler 10 | . 1 . . 4 1 1 . . . . . . . . . . 3 . . . . . Recycler 13 | . . . . 3 4 5 . . . . . . . . . . 1 . . . . . Operator 2 | . . . . . 1 . . . . . . . . . . 1 . . . . . . Watcher 7 | . . . . 2 . 1 . 1 . . . . . 1 . . 2 . . . . . Swarmer 50 | . 5 . . 7 . 2 . . 4 . . 7 . 3 . . . 9 4 4 . 5 Grunt 70 | . 6 5 8 12 10 7 . . . . . . . 2 2 . 3 11 4 . . . Brawler 1 | . . . . . . . . . . . . . . . . . . 1 . . . . Duelist 2 | . . . . . . 1 . . . . . . . . 1 . . . . . . . Protector 1 | . . . . . . . . . . . . . . . . . 1 . . . . . Sentry 17 | . . . 3 6 4 . . . . . . . . . . . 1 3 . . . . Specialist 3 | . . . . . . . . . . . . 1 . . . . . 2 . . . . Hunter 10 | . . . . . 1 . . . . . . . . . . . 4 5 . . . . Programmer 8 | . . . . . . 1 . . . . . . . 1 . . . 5 1 . . . Heavy 1 | . . . . . . . . . . . . . . . . . . 1 . . . . Lightning 2 | . . . . . . . . . . . . . . . . . 2 . . . . . Decomposer 1 | . . . . . . . . . . 1 . . . . . . . . . . . . Packrat 1 | . . . . . . . . . . . . . . . . . . . 1 . . . Thug 7 | . . . . . . . . . . . . . . . . . . . 3 4 . . Savage 1 | . . . . . . . . . . . . . . . . . . . . 1 . . Mutant 1 | . . . . . . . . . . . . . . . . . . . . 1 . . Best Kill Streak 16 | . 7 3 3 5 5 6 . 1 4 . . 4 . 3 2 1 16 7 3 4 1 5 Combat Bots Only 7 | . 5 2 3 4 5 5 . . 4 . . 4 . 3 2 . 3 7 3 4 . 5 Max Kills in Single Turn 14 | . 4 1 1 1 1 2 . 1 3 1 . 3 . 2 2 1 14 4 2 4 1 3 Gunslinging . | . . . . . . . . . . . . . . . . . . . . . . . Exploded 4 | . 3 . . . . 2 . . 3 . . 3 . 2 2 . 1 4 2 4 . 3 Melee 1 | . . . . . 1 . . . . . . 1 . 1 . . . . . . . . Uniques/NPCs Destroyed 1 | . . . . . . . . . . . . . . . . . . . . . 1 . Svarog (-5/Zhirov) Combat | -11 -10 -10 -9 -9 -8 -7 -7 -7 -7 -7 -7 -6 -6 -6 -6 -6 -6 -5 -5 -5 -5 -4 -------- Run | Scr Mat Min Mat Sto Mat Fac Was Fac Low Low Dat Pro Fac Ext Cet Arc Hub Fac Upp Upp Zhi Pro Damage Taken 19672 | . 268 322 462 892 1178 1027 . 49 130 56 . 320 . 315 93 150 3099 7093 1668 428 937 1185 Core 1791 | . 61 27 29 45 132 29 . 22 73 . . 90 . 36 18 22 195 535 194 18 . 265 Absorbed by Shields 700 | . . . . . . . . . . . . . . 49 33 . . 618 . . . . Reduced by Siege Mode 678 | . . . . . . . . . . . . . . . . . 496 162 20 . . . Regen/Repaired (Parts) 705 | . . . 326 218 137 . . 24 . . . . . . . . . . . . . . Core Remaining (%) 76 | 100 . 64 . 81 76 . . . . . . 69 . . . . 68 . . . . . Volleys Fired 614 | . 27 18 27 68 24 36 . . 6 . . 12 . 35 10 8 73 160 57 15 17 21 Largest 2 | . 2 2 2 2 2 2 . . 1 . . 1 . 2 2 2 2 2 2 2 2 1 Hottest 162 | . 76 76 79 46 46 65 . . 65 . . 36 . 118 155 155 123 162 162 162 162 98 Shots Fired 1031 | . 52 35 54 133 41 65 . . 6 . . 12 . 36 19 12 115 279 93 29 29 21 Gun 879 | . 50 35 54 130 41 60 . . . . . 1 . 1 6 4 82 271 81 28 23 12 Cannon 67 | . . . . . . . . . 4 . . . . 6 7 5 26 2 9 . 4 4 Launcher 44 | . 2 . . 3 . 5 . . 2 . . 4 . 2 6 . 7 4 3 1 . 5 Special 41 | . . . . . . . . . . . . 7 . 27 . 3 . 2 . . 2 . Kinetic 647 | . 27 29 27 130 41 58 . . . . . 1 . 1 . . 82 222 29 . . . Thermal 298 | . 23 6 27 . . 2 . . 4 . . . . 6 13 9 26 51 61 28 26 16 Explosive 44 | . 2 . . 3 . 5 . . 2 . . 4 . 2 6 . 7 4 3 1 . 5 Electromagnetic 1 | . . . . . . . . . . . . . . . . . . . . . 1 . Robot Hit Streak 32 | . 8 7 13 32 23 18 . . . . . 7 . 13 5 9 12 29 15 12 13 4 Robot Miss Streak 4 | . 4 2 2 3 1 2 . . . . . 1 . 1 2 1 3 4 3 2 1 2 Penetration Max 1 | . . . . . . . . . . . . . . . . . 1 1 . . . . Secondary Targets 11 | . . . . 2 . 1 . . . . . . . . . . 1 5 1 1 . . Max Gunslinging Chain 1 | . . . . 1 . 1 . . . . . . . . . . 1 1 1 1 . . Shots Hit Robots 792 | . 31 23 43 98 65 62 . 1 . 1 . 14 . 38 12 11 66 214 62 20 22 9 Core Hits 403 | . 18 13 20 46 31 33 . 1 4 1 . 10 . 6 17 2 58 87 26 17 6 7 Critical Kills 8 | . . . . 1 . 1 . . . . . . . . . . 1 4 . . 1 . Critical Parts Destroyed 9 | . 1 . . . . . . . . . . . . . . . 1 7 . . . . Critical Strikes 30 | . 2 . 1 1 3 1 . . . . . . . 1 . . 2 12 6 . 1 . Burn 8 | . 1 . 1 . . . . . . . . . . . . . . . 6 . . . Meltdown 1 | . . . . . . . . . . . . . . . . . . . . . 1 . Destroy 17 | . 1 . . 1 1 1 . . . . . . . . . . 2 11 . . . . Blast 1 | . . . . . . . . . . . . . . . . . . 1 . . . . Sever 3 | . . . . . 2 . . . . . . . . 1 . . . . . . . . Melee Attacks 140 | . . . . . 48 25 . 9 3 2 6 17 . 20 . 10 . . . . . . Impact . | . . . . . . . . . . . . . . . . . . . . . . . Slashing 130 | . . . . . 48 25 . 9 3 2 6 17 . 20 . . . . . . . . Piercing . | . . . . . . . . . . . . . . . . . . . . . . . Sneak Attacks 17 | . . . . . . 5 . . . 1 . 6 . 1 . 4 . . . . . . Combat Hostiles 1 | . . . . . . . . . . . . . . 1 . . . . . . . . Follow-up Attacks . | . . . . . . . . . . . . . . . . . . . . . . . Damage Inflicted 25892 | . 1020 301 780 1626 1759 2196 . 62 259 93 . 1062 . 1065 899 231 4127 6251 2032 834 689 606 Guns 14058 | . 442 301 780 1544 502 895 . . . . . . . . 128 104 1206 5452 1330 568 565 241 Cannons 1113 | . . . . . . . . . . . . . . . 135 127 418 53 256 . 124 . Explosions 7312 | . 578 . . 76 . 547 . . 259 . . 536 . 365 636 . 2496 746 446 266 . 361 Melee 3392 | . . . . . 1257 754 . 62 . 93 . 526 . 700 . . . . . . . . Ramming 17 | . . . . 6 . . . . . . . . . . . . 7 . . . . 4 Kinetic 9971 | . 200 266 385 1544 502 879 . . . . . . . . . . 1206 4498 491 . . . Thermal 5349 | . 242 35 395 . . 16 . . . . . . . . 263 231 567 1007 1095 568 689 241 Explosive 5629 | . 578 . . 76 . 547 . . 259 . . 536 . 365 636 . 813 746 446 266 . 361 Electromagnetic 1534 | . . . . . . . . . . . . . . . . . 1534 . . . . . Impact . | . . . . . . . . . . . . . . . . . . . . . . . Slashing 3392 | . . . . . 1257 754 . 62 . 93 . 526 . 700 . . . . . . . . Piercing . | . . . . . . . . . . . . . . . . . . . . . . . Highest Corruption 19 | . 3 3 . . . 1 6 6 6 6 6 6 . . . . 17 16 16 17 19 19 Average Corruption 10 | . 1 3 . . . 1 2 6 6 6 6 6 . . . . 5 6 16 16 18 19 Corruption Purged . | . . . . . . . . . . . . . . . . . . . . . . . Corruption Blocked . | . . . . . . . . . . . . . . . . . . . . . . . Effects 270 | . 7 11 . . . 3 . 9 9 14 1 14 . . . . 17 28 48 28 40 41 Message Errors 69 | . 2 2 . . . 1 . 4 5 3 1 2 . . . . 4 8 9 6 14 8 Matter Fused 58 | . . 1 . . . . . 3 1 7 . 3 . . . . 3 4 13 4 10 9 Heat Flow Errors 36 | . 1 1 . . . . . 1 . 1 . 2 . . . . 4 3 6 7 5 5 Energy Discharges 39 | . 1 1 . . . . . 1 1 2 . 3 . . . . 4 5 8 2 5 6 Parts Rejected 1 | . . . . . . . . . . . . . . . . . . . 1 . . . Data Loss (minor) 33 | . 2 2 . . . 2 . . 2 1 . 3 . . . . 1 3 4 4 1 8 Data Loss (major) 13 | . . 1 . . . . . . . . . 1 . . . . . 3 1 3 1 3 Misfires 8 | . . 1 . . . . . . . . . . . . . . . . 3 1 2 1 Alerts 3 | . 1 . . . . . . . . . . . . . . . . . 1 . 1 . Weapon Failures 10 | . . 2 . . . . . . . . . . . . . . 1 2 2 1 1 1 Overload Shots 2 | . . . . . . . . . . . . . . . . . . 2 . . . . Overflow Damage 659 | . 6 . . . 29 226 . . 5 . . 92 . 47 . . 58 62 63 . . 71 Projectiles 5 | . . . . . . . . . . . . . . . . . 5 . . . . . Explosions 270 | . 6 . . . . . . . 5 . . . . 10 . . 53 62 63 . . 71 Melee 384 | . . . . . 29 226 . . . . . 92 . 37 . . . . . . . . Knockbacks 1 | . . . . . . . . . . . . . . . . . . . . . . 1 Impact 1 | . . . . . . . . . . . . . . . . . . . . . . 1 Kinetic . | . . . . . . . . . . . . . . . . . . . . . . . Secondary . | . . . . . . . . . . . . . . . . . . . . . . . Self-Inflicted Damage 586 | . . . . 62 . 104 . . . . . . . . . . 294 55 49 . . 22 Shots 20 | . . . . 2 . 5 . . . . . . . . . . 8 2 2 . . 1 Rammed 3 | . . . . 1 . . . . . . . . . . . . 1 . . . . 1 Targets Rammed 4 | . . . . 1 . . . . . . . . . . . . 2 . . . . 1 Kicked . | . . . . . . . . . . . . . . . . . . . . . . . Crushed 1 | . . . . . . . . . . . . . . . . . 1 . . . . . Highest Temperature 529 | . 441 149 4 11 10 11 . 95 15 210 . 168 16 117 270 201 529 520 347 240 297 200 Average Temperature 112 | . 155 42 2 11 8 9 . 22 15 121 . 79 7 34 90 95 144 134 147 68 61 50 Received Heat Transfer 5089 | . 141 192 192 315 504 351 . 18 36 21 . 24 . 91 18 18 429 1727 625 135 45 207 Effects 30 | . 2 . . . . . . . . . . . . . 1 . 14 7 6 . . . Shutdowns 12 | . 2 . . . . . . . . . . . . . . . 6 3 1 . . . Energy Bleed 4 | . . . . . . . . . . . . . . . 1 . 1 1 1 . . . Interference 7 | . . . . . . . . . . . . . . . . . 3 2 2 . . . Matter Decay 2 | . . . . . . . . . . . . . . . . . . 1 1 . . . Damage (minor) 2 | . . . . . . . . . . . . . . . . . 1 . 1 . . . Damage (major) 3 | . . . . . . . . . . . . . . . . . 3 . . . . . Siege Activations 8 | . . . . . . . . . . . . . . . . . 2 5 1 . . . Total Turns 276 | . . . . . . . . . . . . . . . . . 105 132 39 . . . Longest Duration 89 | . . . . . . . . . . . . . . . . . 89 52 39 . . . Robots Corrupted 1 | . . . . . . . . . . . . . . . . . 1 . . . . . Combat Hostiles . | . . . . . . . . . . . . . . . . . . . . . . . Parts Fried 9 | . . . . . . . . . . . . . . . . . 9 . . . . . Impact Corruptions . | . . . . . . . . . . . . . . . . . . . . . . . Robots Melted 3 | . . . . . . . . . . . . . . . . . . 2 . . 1 . Combat Hostiles 2 | . . . . . . . . . . . . . . . . . . 2 . . . . Parts Melted 21 | . 2 . 3 2 . . . . . . . . . . . 1 . 4 7 2 . . Heat Transferred 8834 | . 629 74 888 . . 37 . . . . . . . . 385 348 800 1554 2193 740 816 370 Parts Sabotaged . | . . . . . . . . . . . . . . . . . . . . . . . Parts Stolen . | . . . . . . . . . . . . . . . . . . . . . . . Parts Stripped . | . . . . . . . . . . . . . . . . . . . . . . . Power Chain Reactions 1 | . . . . . . . . . . . . . . . . . 1 . . . . . Missiles Intercepted . | . . . . . . . . . . . . . . . . . . . . . . . Alert | -11 -10 -10 -9 -9 -8 -7 -7 -7 -7 -7 -7 -6 -6 -6 -6 -6 -6 -5 -5 -5 -5 -4 ------- Run | Scr Mat Min Mat Sto Mat Fac Was Fac Low Low Dat Pro Fac Ext Cet Arc Hub Fac Upp Upp Zhi Pro Peak Influence 1581 | . 240 195 177 517 258 351 89 309 . . . . 372 538 685 416 1581 1325 . . . . Initial 764 | . . 93 13 50 67 64 74 62 . . . . 312 182 204 194 75 764 . . . . Average 362 | . 102 80 60 216 141 149 81 156 . . . . 330 367 417 314 775 979 . . . . Maximum Alert Level 4 | . 1 . . 2 1 1 . 1 . . . . 1 2 2 2 4 4 . . . . Low Security (%) 42 | . 71 100 100 42 70 66 100 72 . . . . . 5 . . 5 . . . . . Level 1 27 | . 28 . . 50 29 33 . 27 . . . . 100 52 65 51 14 . . . . . Level 2 9 | . . . . 6 . . . . . . . . . 41 34 47 22 . . . . . Level 3 13 | . . . . . . . . . . . . . . . . . 39 66 . . . . Level 4 6 | . . . . . . . . . . . . . . . . . 19 33 . . . . Level 5 . | . . . . . . . . . . . . . . . . . . . . . . . High Security . | . . . . . . . . . . . . . . . . . . . . . . . Max Security . | . . . . . . . . . . . . . . . . . . . . . . . Squads Dispatched 46 | . 2 1 1 2 3 5 . 2 . . . . 2 2 . . 9 17 . . . . Investigation 15 | . . 1 . 1 1 2 . 1 . . . . 1 2 . . 3 3 . . . . Extermination 5 | . . . . . . 2 . . . . . . . . . . 1 2 . . . . Reinforcement 21 | . 2 . 1 1 2 1 . 1 . . . . 1 . . . 4 8 . . . . Assault 5 | . . . . . . . . . . . . . . . . . 1 4 . . . . Garrison . | . . . . . . . . . . . . . . . . . . . . . . . Intercept . | . . . . . . . . . . . . . . . . . . . . . . . Searches Triggered . | . . . . . . . . . . . . . . . . . . . . . . . Data Miner Redirects 7 | . . . . . . . . . . . . . . 2 . . 3 2 . . . . Construction Impeded 3 | . . . . . . . . . . . . . . . . . 1 2 . . . . Haulers Reinforced 2 | . . . . . . . . . . . . . . . . . 1 1 . . . . Active Scanning Responses 2 | . . . . . . . . . . . . . . . . . 2 . . . . . Cargo Convoy Interrupts 1 | . . . . . . . . . . . . . . . . . . 1 . . . . Stealth | -11 -10 -10 -9 -9 -8 -7 -7 -7 -7 -7 -7 -6 -6 -6 -6 -6 -6 -5 -5 -5 -5 -4 --------- Run | Scr Mat Min Mat Sto Mat Fac Was Fac Low Low Dat Pro Fac Ext Cet Arc Hub Fac Upp Upp Zhi Pro Distress Signals 21 | . 3 1 1 4 1 1 . . . . . 1 . 3 1 . 4 1 . . . . Communications Jammed 11 | . . . . . . . . . . . . . . . . . . 11 . . . . Distress Signals 11 | . . . . . . . . . . . . . . . . . . 11 . . . . Times Spotted 351 | . 20 5 12 30 26 25 3 7 17 10 . 33 4 27 13 3 23 51 16 14 3 9 Peak Tracking Total 14 | . 7 2 3 4 7 7 3 3 14 4 . 10 4 8 6 1 8 7 4 4 3 5 Tactical Retreats 25 | . 1 . 1 . 1 1 . 1 1 5 . 5 1 2 1 . 3 2 . . . . Traps | -11 -10 -10 -9 -9 -8 -7 -7 -7 -7 -7 -7 -6 -6 -6 -6 -6 -6 -5 -5 -5 -5 -4 ------- Run | Scr Mat Min Mat Sto Mat Fac Was Fac Low Low Dat Pro Fac Ext Cet Arc Hub Fac Upp Upp Zhi Pro Traps Triggered 10 | . 1 . . 1 . 2 . . . . . . . 4 . . 1 1 . . . . Indirectly . | . . . . . . . . . . . . . . . . . . . . . . . Trap Hack Attempts . | . . . . . . . . . . . . . . . . . . . . . . . Triggered . | . . . . . . . . . . . . . . . . . . . . . . . Disarmed 2 | . . . . . . . . . . . . . . 2 . . . . . . . . Reprogrammed . | . . . . . . . . . . . . . . . . . . . . . . . Reused . | . . . . . . . . . . . . . . . . . . . . . . . Traps Extracted . | . . . . . . . . . . . . . . . . . . . . . . . Installed . | . . . . . . . . . . . . . . . . . . . . . . . Triggered 2 | . . . . . . . . . . . . . . . . . . 2 . . . . Most Traps Carried 1 | . . . . . . . . . . . . . . . . . . . 1 1 1 1 Machines | -11 -10 -10 -9 -9 -8 -7 -7 -7 -7 -7 -7 -6 -6 -6 -6 -6 -6 -5 -5 -5 -5 -4 ---------- Run | Scr Mat Min Mat Sto Mat Fac Was Fac Low Low Dat Pro Fac Ext Cet Arc Hub Fac Upp Upp Zhi Pro Machines Disabled 38 | . 1 . . 2 . . . . . . . 2 . 1 1 3 22 4 . . 2 . Max in Single Turn 9 | . 1 . . 1 . . . . . . . 1 . 1 1 . 9 1 . . 1 . Garrison Access 3 | . . . . . . . . 1 . . . . 1 . . . . 1 . . . . Network Hub 1 | . . . . . . . . . . . . . . . . . 1 . . . . . Machines Sabotaged . | . . . . . . . . . . . . . . . . . . . . . . . Garrisons Compromised 1 | . . . . . . . . . . . . . . . . . . 1 . . . . Overloaded Fab Kills . | . . . . . . . . . . . . . . . . . . . . . . . Hacking | -11 -10 -10 -9 -9 -8 -7 -7 -7 -7 -7 -7 -6 -6 -6 -6 -6 -6 -5 -5 -5 -5 -4 --------- Run | Scr Mat Min Mat Sto Mat Fac Was Fac Low Low Dat Pro Fac Ext Cet Arc Hub Fac Upp Upp Zhi Pro Machines Accessed 76 | . 5 1 6 10 4 5 . 11 1 2 2 1 2 7 1 . 2 8 1 . 7 . Terminals 46 | . 5 1 3 8 1 4 . 7 1 1 . 1 1 7 1 . 2 3 . . . . Fabricators 5 | . . . . . . . . 2 . . . . . . . . . 3 . . . . Repair Stations 8 | . . . 2 2 2 1 . 1 . . . . . . . . . . . . . . Recycling Units 2 | . . . . . 1 . . . . . . . . . . . . 1 . . . . Scanalyzers 2 | . . . 1 . . . . . . . . . . . . . . 1 . . . . Garrison Access 2 | . . . . . . . . 1 . . . . 1 . . . . . . . . . Total Hacks 268 | . 16 3 32 25 14 15 . 51 7 2 20 2 4 23 1 . 4 26 1 . 22 . Successful 176 | . 7 1 26 18 9 5 . 31 7 2 20 1 1 9 . . 1 15 1 . 22 . Failed 91 | . 8 2 6 7 5 10 . 20 . . . 1 3 14 1 . 3 11 . . . . Catastrophic 20 | . . . 2 2 . 3 . 6 . . . . 1 2 1 . . 3 . . . . Database Lockouts 1 | . 1 . . . . . . . . . . . . . . . . . . . . . Manual 118 | . 14 3 12 6 4 14 . 30 . . . . 2 19 2 . 4 7 . . 1 . Terminals 160 | . 16 3 17 14 5 14 . 38 7 1 . 2 2 23 1 . 4 13 . . . . Fabricators 10 | . . . . . . . . 4 . . . . . . . . . 6 . . . . Repair Stations 39 | . . . 13 11 6 1 . 8 . . . . . . . . . . . . . . Recycling Units 5 | . . . . . 3 . . . . . . . . . . . . 2 . . . . Scanalyzers 7 | . . . 2 . . . . . . . . . . . . . . 5 . . . . Garrison Access 3 | . . . . . . . . 1 . . . . 2 . . . . . . . . . Terminal Hacks 105 | . 6 1 8 7 2 3 . 14 7 2 20 1 . 5 . . 1 5 1 . 22 . Record 20 | . . . 1 . . . . . 7 2 . . . . . . . . . . 10 . Part Schematic 16 | . . 1 . . . . . . . . 11 . . . . . . . . . 4 . Robot Schematic 6 | . . . . . . . . . . . 6 . . . . . . . . . . . Robot Analysis 12 | . 3 . . . . 1 . 3 . . . . . 1 . . . . . . 4 . Prototype ID Bank 9 | . . . . . . . . 1 . . 3 . . 1 . . . . . . 4 . Open Door 5 | . . . . 3 . . . . . . . 1 . . . . . . 1 . . . Branch Access Points 5 | . 1 . 1 . . 1 . 1 . . . . . . . . . 1 . . . . Emergency Access Points 1 | . . . . . . . . 1 . . . . . . . . . . . . . . Terminal Index 7 | . . . 1 1 1 1 . 1 . . . . . 1 . . . 1 . . . . Fabricator Index 1 | . . . . . . . . . . . . . . . . . . 1 . . . . Repair Station Index 1 | . . . . . . . . 1 . . . . . . . . . . . . . . Alert Level 4 | . 1 . . 2 1 . . . . . . . . . . . . . . . . . Unreport Threat 1 | . . . . 1 . . . . . . . . . . . . . . . . . . Locate Traps 3 | . 1 . . . . . . 1 . . . . . . . . . 1 . . . . Disarm Traps 1 | . . . . . . . . . . . . . . 1 . . . . . . . . Security Status 1 | . . . . . . . . 1 . . . . . . . . . . . . . . Patrol Status 1 | . . . . . . . . 1 . . . . . . . . . . . . . . Transport Status 1 | . . . 1 . . . . . . . . . . . . . . . . . . . Investigation Status 1 | . . . 1 . . . . . . . . . . . . . . . . . . . Garrison Status 1 | . . . 1 . . . . . . . . . . . . . . . . . . . Registered Components 3 | . . . 1 . . . . 1 . . . . . . . . . 1 . . . . Zone Layout 5 | . . . 1 . . . . 2 . . . . . 1 . . 1 . . . . . Fabricator Hacks 7 | . . . . . . . . 2 . . . . . . . . . 5 . . . . Network Status 3 | . . . . . . . . 2 . . . . . . . . . 1 . . . . Load Schematic 2 | . . . . . . . . . . . . . . . . . . 2 . . . . Build 2 | . . . . . . . . . . . . . . . . . . 2 . . . . Repair Station Hacks 28 | . . . 12 9 4 . . 3 . . . . . . . . . . . . . . Scan Component 15 | . . . 6 5 2 . . 2 . . . . . . . . . . . . . . Repair 13 | . . . 6 4 2 . . 1 . . . . . . . . . . . . . . Recycling Unit Hacks 3 | . . . . . 1 . . . . . . . . . . . . 2 . . . . Retrieve Matter 2 | . . . . . . . . . . . . . . . . . . 2 . . . . Retrieve Components 1 | . . . . . 1 . . . . . . . . . . . . . . . . . Scanalyzer 4 | . . . 2 . . . . . . . . . . . . . . 2 . . . . Insert Component 2 | . . . 1 . . . . . . . . . . . . . . 1 . . . . Analyze 2 | . . . 1 . . . . . . . . . . . . . . 1 . . . . Garrison Access Hacks 2 | . . . . . . . . 1 . . . . 1 . . . . . . . . . Seal Access 2 | . . . . . . . . 1 . . . . 1 . . . . . . . . . Unauthorized Hacks 27 | . 1 . 4 2 2 2 . 11 . . . . . 4 . . . 1 . . . . Terminals 24 | . 1 . 4 2 1 2 . 9 . . . . . 4 . . . 1 . . . . Track 5 | . . . 2 1 . . . 1 . . . . . 1 . . . . . . . . Assimilate 5 | . . . . . . . . 4 . . . . . 1 . . . . . . . . Botnet 14 | . 1 . 2 1 1 2 . 4 . . . . . 2 . . . 1 . . . . Fabricators 2 | . . . . . . . . 2 . . . . . . . . . . . . . . Fabnet 2 | . . . . . . . . 2 . . . . . . . . . . . . . . Repair Stations . | . . . . . . . . . . . . . . . . . . . . . . . Recycling Units 1 | . . . . . 1 . . . . . . . . . . . . . . . . . Tunnel 1 | . . . . . 1 . . . . . . . . . . . . . . . . . Scanalyzers . | . . . . . . . . . . . . . . . . . . . . . . . Garrison Access . | . . . . . . . . . . . . . . . . . . . . . . . Data Cores Recovered . | . . . . . . . . . . . . . . . . . . . . . . . Used . | . . . . . . . . . . . . . . . . . . . . . . . Hacking Detections 58 | . 5 1 6 9 3 5 . 9 . . . 1 1 7 1 . 2 8 . . . . Full Trace Events 13 | . 1 1 1 1 . 2 . 1 . . . . 1 2 . . . 3 . . . . Feedback Events 1 | . 1 . . . . . . . . . . . . . . . . . . . . . Corruption 1 | . 1 . . . . . . . . . . . . . . . . . . . . . Feedback Blocked . | . . . . . . . . . . . . . . . . . . . . . . . Robot Schematics Acquired 6 | . . . . . . . . . . . 6 . . . . . . . . . . . Robots Built . | . . . . . . . . . . . . . . . . . . . . . . . Authchips . | . . . . . . . . . . . . . . . . . . . . . . . Time . | . . . . . . . . . . . . . . . . . . . . . . . Total Robot Build Rating . | . . . . . . . . . . . . . . . . . . . . . . . Part Schematics Acquired 18 | . . 1 1 . . . . . . . 11 . . . . . . 1 . . 4 . Parts Built 1 | . . . . . . . . . . . . . . . . . . 1 . . . . Authchips . | . . . . . . . . . . . . . . . . . . . . . . . Time 408 | . . . . . . . . . . . . . . . . . . 408 . . . . Total Part Build Rating 8 | . . . . . . . . . . . . . . . . . . 8 . . . . Parts Repaired 13 | . . . 6 4 2 . . 1 . . . . . . . . . . . . . . Time 430 | . . . 181 116 101 . . 32 . . . . . . . . . . . . . . Parts Recycled . | . . . . . . . . . . . . . . . . . . . . . . . Recycled Matter . | . . . . . . . . . . . . . . . . . . . . . . . Retrieved Matter . | . . . . . . . . . . . . . . . . . . . . . . . Retrieved Components 10 | . . . . . 10 . . . . . . . . . . . . . . . . . Parts Scanalyzed 2 | . . . 1 . . . . . . . . . . . . . . 1 . . . . Part Schematics Acquired 2 | . . . 1 . . . . . . . . . . . . . . 1 . . . . Parts Damaged . | . . . . . . . . . . . . . . . . . . . . . . . Bothacking | -11 -10 -10 -9 -9 -8 -7 -7 -7 -7 -7 -7 -6 -6 -6 -6 -6 -6 -5 -5 -5 -5 -4 ------------ Run | Scr Mat Min Mat Sto Mat Fac Was Fac Low Low Dat Pro Fac Ext Cet Arc Hub Fac Upp Upp Zhi Pro Used RIF Installer . | . . . . . . . . . . . . . . . . . . . . . . . Robots Hacked 12 | . . . . . . . . . . . . 2 . 1 . 3 1 3 1 . 1 . Non-combat 2 | . . . . . . . . . . . . . . . . 1 . 1 . . . . Combat 10 | . . . . . . . . . . . . 2 . 1 . 2 1 2 1 . 1 . Robot Hacks Applied 4 | . . . . . . . . . . . . . . . . 2 . 1 . . 1 . parse_system 2 | . . . . . . . . . . . . . . . . 1 . . . . 1 . find_recycling 1 | . . . . . . . . . . . . . . . . . . 1 . . . . check_alert 1 | . . . . . . . . . . . . . . . . 1 . . . . . . Relay Couplers Released 2 | . . . . . . . . . . . . . . . . . . 2 . . . . Machine Destruction 2 | . . . . . . . . . . . . . . . . . . 2 . . . . Fabnet Peak Effective % 6 | . . . . . . . . . . . . 6 6 6 6 6 6 2 2 2 2 . Autooverrided 8 | . . . . . . . . . . . . 2 . 1 . 1 1 2 1 . . . Robots Rewired 20 | . . . . . . . . . . . . 5 . 15 . . . . . . . . Allies Hacked . | . . . . . . . . . . . . . . . . . . . . . . . Hacks Repelled . | . . . . . . . . . . . . . . . . . . . . . . . Allies | -11 -10 -10 -9 -9 -8 -7 -7 -7 -7 -7 -7 -6 -6 -6 -6 -6 -6 -5 -5 -5 -5 -4 -------- Run | Scr Mat Min Mat Sto Mat Fac Was Fac Low Low Dat Pro Fac Ext Cet Arc Hub Fac Upp Upp Zhi Pro Total Allies 55 | . . . . 10 . . 1 3 . . . 8 . 23 5 1 1 2 1 . . . Largest Group 10 | . . . . 10 2 . 1 3 3 . . 3 . 6 7 7 6 1 . . . . Highest-Rated Group 678 | . . . . 88 16 . 31 78 78 . . 96 . 260 678 678 519 54 . . . . Highest-Rated Ally 159 | . . . . 16 8 . 31 26 26 . . 96 . 159 159 159 96 54 . . . . Total Orders 4 | . . . . 1 . . . . . . . . . . . . . . . 1 . 2 EXPLORE 4 | . . . . 1 . . . . . . . . . . . . . . . 1 . 2 Ally Attacks 337 | . . . . 42 1 . . . . . . 30 . 93 58 28 79 4 2 . . . Total Damage 8534 | . . . . 419 12 . . . . . . 864 . 1814 1536 964 2895 18 12 . . . Kills 62 | . . . . 3 . . . . . . . 9 . 16 12 4 18 . . . . . Allies Corrupted . | . . . . . . . . . . . . . . . . . . . . . . . Allies Melted 1 | . . . . . . . . . . . . . . . . . 1 . . . . . Intel | -11 -10 -10 -9 -9 -8 -7 -7 -7 -7 -7 -7 -6 -6 -6 -6 -6 -6 -5 -5 -5 -5 -4 ------- Run | Scr Mat Min Mat Sto Mat Fac Was Fac Low Low Dat Pro Fac Ext Cet Arc Hub Fac Upp Upp Zhi Pro Robot Analysis Total 12 | . 3 . . . . 1 . 3 . . . . . 1 . . . . . . 4 . Derelict Logs Recovered 7 | . . 1 . . . . . . 2 2 . 1 . . . . . . . 1 . . Drone Launches 24 | . . . . 17 . . . . . . . . . . . . . . . 3 . 4 Drone Recoveries 5 | . . . . 3 . . . . . . . . . . . . . . . 1 . 1 Exploration | -11 -10 -10 -9 -9 -8 -7 -7 -7 -7 -7 -7 -6 -6 -6 -6 -6 -6 -5 -5 -5 -5 -4 ------------- Run | Scr Mat Min Mat Sto Mat Fac Was Fac Low Low Dat Pro Fac Ext Cet Arc Hub Fac Upp Upp Zhi Pro Turns Passed 16070 | . 794 638 1065 2017 924 860 19 367 297 417 38 378 85 573 448 719 726 1904 1086 659 916 1140 Spaces Moved 10187 | 1 434 352 437 824 346 723 71 909 743 415 93 783 254 826 258 318 299 661 478 266 428 268 Core 1 | . . . . . . . . . . . . . . . . . . . . . . 1 Treads 5551 | . 388 352 437 824 346 271 . . . . . . . . 216 318 299 661 478 266 428 267 Legs 20 | 1 19 . . . . . . . . . . . . . . . . . . . . . Wheels 27 | . 27 . . . . . . . . . . . . . . . . . . . . . Hover . | . . . . . . . . . . . . . . . . . . . . . . . Flight 4588 | . . . . . . 452 71 909 743 415 93 783 254 826 42 . . . . . . . Fastest Speed 20 | 120 95 160 160 160 160 26 26 23 23 23 23 23 20 20 20 160 160 160 165 162 160 240 Average Speed 108 | 120 154 160 160 160 160 81 26 25 23 23 23 23 20 21 137 160 160 165 180 204 195 382 Slowest Speed 1400 | 120 160 160 160 160 240 240 26 26 23 23 23 23 20 85 160 160 160 245 250 243 240 1400 Overloaded Moves . | . . . . . . . . . . . . . . . . . . . . . . . Propulsion Burnouts . | . . . . . . . . . . . . . . . . . . . . . . . Robots Hopped 19 | . . . . . . 1 . 4 . . . 6 1 7 . . . . . . . . Cave-ins Triggered . | . . . . . . . . . . . . . . . . . . . . . . . Teleports 1 | . . . . . . . . . . . . . . . . . . . . . . 1 Exploration Rate (%) 54 | 2 79 85 43 91 30 21 76 28 81 61 70 61 10 72 54 98 32 13 66 58 90 30 Regions Visited 22 Branch Regions 14 Pre-discovered Areas 7 | . . 1 . . 1 . . . 1 . . . . . . . . . . 1 3 . Known Exits Taken 14 | . 1 . 1 . . . . 1 1 1 1 1 1 1 1 1 1 1 1 . . . Unknown Exits Taken 6 | 1 . 1 . 1 1 . . . . . . . . . . . . . . 1 1 . Scrap Searched 13 | . . 1 . . . . . . 4 . . 3 . . . . . . 2 3 . . Spaces Dug 285 | . . . . 7 2 27 . 8 4 1 6 14 . 22 . . 153 2 27 4 . 8 Terrain Destroyed 592 | . 11 . . 15 2 47 . 8 18 1 6 32 . 35 43 1 220 61 46 9 1 36 Melee 31 | . . . . . 2 9 . 8 3 1 6 2 . . . . . . . . . . Projectile 68 | . . . . . . . . . 1 . . . . 6 3 1 13 27 7 5 1 4 AOE 493 | . 11 . . 15 . 38 . . 14 . . 30 . 29 40 . 207 34 39 4 . 32 Terrain Rammed . | . . . . . . . . . . . . . . . . . . . . . . . Walls Destroyed . | . . . . . . . . . . . . . . . . . . . . . . . Machines Disabled . | . . . . . . . . . . . . . . . . . . . . . . . Actions | -11 -10 -10 -9 -9 -8 -7 -7 -7 -7 -7 -7 -6 -6 -6 -6 -6 -6 -5 -5 -5 -5 -4 --------- Run | Scr Mat Min Mat Sto Mat Fac Was Fac Low Low Dat Pro Fac Ext Cet Arc Hub Fac Upp Upp Zhi Pro Total 13957 | . 506 391 750 1396 588 889 70 1027 856 731 98 934 285 1148 333 523 426 1185 615 360 481 365 Wait 2285 | . 15 18 257 424 120 55 . 69 96 308 . 110 21 164 18 172 27 259 38 45 1 68 Move 10131 | . 433 351 436 823 345 721 70 900 742 414 92 772 251 812 257 317 298 660 477 265 427 268 Hop 16 | . . . . . . 1 . 4 . . . 4 1 6 . . . . . . . . Pick Up 130 | . 13 2 10 16 7 4 . 9 . 1 . 3 1 5 9 2 3 24 13 5 3 . Fast Attach 129 | . 2 . 4 13 15 9 . 5 1 2 . 3 2 5 11 4 3 26 8 8 8 . Attach 73 | . . 1 4 4 4 11 . 1 2 . . . 4 5 1 . 2 18 8 1 6 1 Detach 24 | . 1 . . . 1 4 . 1 1 . . . 2 3 . 2 . 6 1 1 1 . Swap 155 | . 9 . 4 11 8 10 . 13 3 2 . 6 2 17 9 3 11 20 6 6 9 6 Drop 179 | . 6 1 8 29 16 13 . 16 2 2 . 7 1 7 18 5 7 12 6 14 9 . Fire 614 | . 27 18 27 68 24 36 . . 6 . . 12 . 35 10 8 73 160 57 15 17 21 Melee 140 | . . . . . 48 25 . 9 3 2 6 17 . 20 . 10 . . . . . . Ram . | . . . . . . . . . . . . . . . . . . . . . . . Kick . | . . . . . . . . . . . . . . . . . . . . . . . Crush 4 | . . . . 1 . . . . . . . . . . . . 2 . . . . 1 Escape Stasis 69 | . . . . . . . . . . . . . . 69 . . . . . . . . Rewire 1 | . . . . . . . . . . . . . . . . . . . 1 . . . Trap . | . . . . . . . . . . . . . . . . . . . . . . . Miscellaneous 7 | . . . . 7 . . . . . . . . . . . . . . . . . . Route ------- -11/Scrapyard -10/Materials (discovered 4 exits: *Mat x3 / *Min) -10/Mines -9/Materials (discovered 3 exits: *Mat / Min / *Sto) -9/Storage -8/Materials -7/Factory (discovered 2 exits: Low x2) -7/Waste -7/Factory (discovered 4 exits: *Fac x2 / *Low x2) -7/Lower Caves -7/Lower Caves (discovered 2 exits: *Fac / *Dat) -7/Data Miner -6/Proximity Caves -6/Factory -6/Extension (discovered 2 exits: *Fac / *Cet) -6/Cetus -6/Archives (discovered 3 exits: *Fac / *Hub x2) -6/Hub_04(d) -5/Factory (discovered 3 exits: *Fac / *Upp x2) -5/Upper Caves -5/Upper Caves (discovered 2 exits: *Fac / *Zhi) -5/Zhirov -4/Proximity Caves History --------- Turn | Location | Event 1 | -11/Scrapyard | Discovered new exit (range 0) 1 | -11/Scrapyard | Entered Materials 111 | -10/Materials | Discovered new exit (range 15) 314 | -10/Materials | Build established: Mutant 320 | -10/Materials | Discovered new exit (range 16) 534 | -10/Materials | Identified exit to Mines 598 | -10/Materials | Discovered new exit (range 9) 657 | -10/Materials | Central database locked down 795 | -10/Materials | Entered Mines 800 | -10/Mines | Met a Derelict bent on vengeance 973 | -10/Mines | Learned Materials emergency access door positions 1072 | -10/Mines | Learned location of Storage (-9) 1418 | -10/Mines | Discovered new exit (range 6) 1433 | -10/Mines | Entered Materials 1433 | -9/Materials | Evolved 2 slots: Propulsion x1, Utility x1 1759 | -9/Materials | Discovered new exit (range 16) 1803 | -9/Materials | Repaired Lgt. Treads 1830 | -9/Materials | Repaired Lgt. Treads 1858 | -9/Materials | Repaired Lgt. Treads 1910 | -9/Materials | Repaired Imp. Medium Laser 1937 | -9/Materials | Repaired Assault Rifle 2222 | -9/Materials | Repaired Lgt. Treads 2356 | -9/Materials | Identified exit to Mines 2356 | -9/Materials | Identified exit to Storage 2496 | -9/Materials | Build established: Scavenger-Mutant 2498 | -9/Materials | Entered Storage 2976 | -9/Storage | Repaired Lgt. Treads 3223 | -9/Storage | Build established: Mutant 3616 | -9/Storage | Assisted by bots powering up and referring to "LRC-V3" 4013 | -9/Storage | Discovered new exit (range 12) 4238 | -9/Storage | Repaired Lgt. Nuclear Core 4265 | -9/Storage | Repaired Lgt. Treads 4292 | -9/Storage | Repaired Lgt. Treads 4515 | -9/Storage | Entered Materials 4515 | -8/Materials | Accompanied by 2 allies 4515 | -8/Materials | Evolved 2 slots: Utility x2 4825 | -8/Materials | Lost 3 parts (3u) 5097 | -8/Materials | Repaired Imp. Assault Rifle 5413 | -8/Materials | Repaired Adv. Heat Sink 5423 | -8/Materials | Discovered new exit (range 11) 5439 | -8/Materials | Entered Factory 5439 | -7/Factory | Evolved 2 slots: Propulsion x2 5596 | -7/Factory | Build established: Scavenger-Mutant 5872 | -7/Factory | Identified exit to Lower Caves 6065 | -7/Factory | Lost 4 parts (1n2u1w) 6299 | -7/Factory | Sucked down chute 6299 | -7/Factory | Entered Waste 6300 | -7/Waste | Met a frightened Derelict 6305 | -7/Waste | Spotted C-40 Crusher 6308 | -7/Waste | Spotted C-40 Crusher 6308 | -7/Waste | Spotted C-40 Crusher 6313 | -7/Waste | Spotted C-40 Crusher 6314 | -7/Waste | EMP discharged 6314 | -7/Waste | Discovered new exit (range 16) 6315 | -7/Waste | Spotted C-40 Crusher 6317 | -7/Waste | Identified exit to Factory 6318 | -7/Waste | Entered Factory 6324 | -7/Factory | Build established: Hacker-Sprinter 6355 | -7/Factory | Repaired Broken Imp. Flight Unit 6423 | -7/Factory | Discovered new exit (range 15) 6423 | -7/Factory | Discovered new exit (range 5) 6526 | -7/Factory | Identified exit to Factory 6685 | -7/Factory | Entered Lower Caves 6685 | -7/Lower Caves | Accompanied by 3 allies 6802 | -7/Lower Caves | Learned Factory machine intel 6958 | -7/Lower Caves | Learned Factory emergency access door positions 6966 | -7/Lower Caves | Learned location of Extension (-6) 6966 | -7/Lower Caves | Learned location of 2 exits from Upper Caves 6966 | -7/Lower Caves | Learned 6 Upper Caves zone layouts 6966 | -7/Lower Caves | Learned Factory stockpile data 6966 | -7/Lower Caves | Learned Armory stockpile data 6970 | -7/Lower Caves | Attracted the attention of an 0b10 base 6981 | -7/Lower Caves | Discovered new exit (range 5) 6982 | -7/Lower Caves | Identified exit to Lower Caves 6982 | -7/Lower Caves | Entered another Lower Caves area 7008 | -7/Lower Caves | Build established: Sprinter 7024 | -7/Lower Caves | Discovered exit to Factory (range 10) 7044 | -7/Lower Caves | Attracted the attention of an 0b10 checkpoint 7391 | -7/Lower Caves | Learned Factory interactive machine intel 7395 | -7/Lower Caves | Learned location of 1 exit from Proximity Caves 7398 | -7/Lower Caves | Discovered new exit (range 5) 7399 | -7/Lower Caves | Identified exit to Data Miner 7399 | -7/Lower Caves | Entered Data Miner 7399 | -7/Data Miner | Discovered new exit (range 6) 7404 | -7/Data Miner | Met Data Miner 7411 | -7/Data Miner | Received God Mode back door access code from Data Miner 7437 | -7/Data Miner | Identified exit to Proximity Caves 7437 | -7/Data Miner | Entered Proximity Caves 7475 | -6/Proximity Caves | Escorted by Enhanced Grunt 7496 | -6/Proximity Caves | Learned 4 Factory zone layouts 7563 | -6/Proximity Caves | Attracted the attention of an 0b10 checkpoint 7582 | -6/Proximity Caves | Entered a huge 0b10 base via the front door 7610 | -6/Proximity Caves | Spotted B-75 Beast 7815 | -6/Proximity Caves | Entered Factory 7815 | -6/Factory | Evolved 2 slots: Power x1, Propulsion x1 7819 | -6/Factory | Loaded intel: 241 machine locations 7820 | -6/Factory | Loaded intel: 54 interactive machine locations 7886 | -6/Factory | Discovered new exit (range 5) 7887 | -6/Factory | Identified exit to Extension 7900 | -6/Factory | Entered Extension 7972 | -6/Extension | Incoming investigation squad redirected 8117 | -6/Extension | Rescued a captive Derelict 8119 | -6/Extension | Rescued a captive Derelict 8129 | -6/Extension | Rescued a captive Derelict 8157 | -6/Extension | Spotted B-75 Beast 8158 | -6/Extension | Spotted B-75 Beast 8256 | -6/Extension | Rescued A7 8271 | -6/Extension | Rescued a captive Derelict 8272 | -6/Extension | Rescued a captive Derelict 8275 | -6/Extension | Rescued a captive Derelict 8285 | -6/Extension | Incoming investigation squad redirected 8379 | -6/Extension | Discovered new exit (range 10) 8380 | -6/Extension | Discovered new exit (range 6) 8381 | -6/Extension | Identified exit to Cetus 8381 | -6/Extension | Identified exit to Factory 8473 | -6/Extension | Entered Cetus 8473 | -6/Cetus | Accompanied by 3 allies (A7) 8478 | -6/Cetus | Acquired a Cetus Manufacturing Module code from A7 8485 | -6/Cetus | Spotted Cetus Guard 8485 | -6/Cetus | Spotted Cetus Guard 8486 | -6/Cetus | Spotted Cetus Guard 8496 | -6/Cetus | Spotted Cetus Guard 8501 | -6/Cetus | Allies destroyed Cetus Guard 8501 | -6/Cetus | Allies destroyed Cetus Guard 8508 | -6/Cetus | Allies destroyed Cetus Guard 8509 | -6/Cetus | Allies destroyed Cetus Guard 8757 | -6/Cetus | Started Cetus Manufacturing Module 8782 | -6/Cetus | Manufactured an Enhanced Grunt 8807 | -6/Cetus | Manufactured an Enhanced Grunt 8807 | -6/Cetus | Build established: Scavenger-Mutant 8821 | -6/Cetus | Discovered new exit (range 16) 8832 | -6/Cetus | Manufactured an Enhanced Grunt 8843 | -6/Cetus | Identified exit to Archives 8857 | -6/Cetus | Manufactured an Enhanced Grunt 8882 | -6/Cetus | Manufactured an Enhanced Grunt 8921 | -6/Cetus | Entered Archives 8921 | -6/Archives | Accompanied by 7 allies (A7) 8966 | -6/Archives | Local machine network offline 9003 | -6/Archives | Discovered new exit (range 16) 9019 | -6/Archives | Discovered exit to Factory (range 16) 9035 | -6/Archives | Discovered new exit (range 16) 9061 | -6/Archives | Identified exit to Hub_04(d) 9640 | -6/Archives | Entered Hub_04(d) 9640 | -6/Hub_04(d) | Accompanied by 6 allies 9727 | -6/Hub_04(d) | Discovered exit to Factory (range 15) 9753 | -6/Hub_04(d) | Found Prototype Device 9753 | -6/Hub_04(d) | Identified Active Sensor Suite 10018 | -6/Hub_04(d) | Incoming investigation squad redirected 10053 | -6/Hub_04(d) | Incoming investigation squad redirected 10227 | -6/Hub_04(d) | Network Hub disabled 10241 | -6/Hub_04(d) | Spotted Lightning 10277 | -6/Hub_04(d) | System corruption reached 10% 10283 | -6/Hub_04(d) | Spotted Lightning 10292 | -6/Hub_04(d) | Spotted Lightning 10301 | -6/Hub_04(d) | Allies destroyed Lightning 10304 | -6/Hub_04(d) | Destroyed Lightning 10331 | -6/Hub_04(d) | Destroyed Lightning 10340 | -6/Hub_04(d) | First assault squad dispatched 10358 | -6/Hub_04(d) | Incoming assault squad redirected 10366 | -6/Hub_04(d) | Entered Factory 10366 | -5/Factory | Evolved 2 slots: Utility x2 10381 | -5/Factory | Lost 3 parts (2u1w) 10517 | -5/Factory | Incoming investigation squad redirected 10666 | -5/Factory | First assault squad dispatched 10695 | -5/Factory | Incoming assault squad redirected 10945 | -5/Factory | Lost 3 parts (1p2n) 11086 | -5/Factory | Discovered new exit (range 5) 11251 | -5/Factory | Cargo convoy interrupted 11632 | -5/Factory | Destroyed 7 combat bots 11659 | -5/Factory | Fabricated Centrium Heavy Treads? 11787 | -5/Factory | Identified exit to Upper Caves 12018 | -5/Factory | Fabricated Centrium Heavy Treads? 12028 | -5/Factory | Lost 3 parts (1p1u1w) 12066 | -5/Factory | System corruption reached 10% 12108 | -5/Factory | Lost 4 parts (2p1u1w) 12241 | -5/Factory | Found Active Sensor Suite 12254 | -5/Factory | Core integrity fell below 50% 12270 | -5/Factory | Entered Upper Caves 12271 | -5/Upper Caves | Identified exit to Upper Caves 12302 | -5/Upper Caves | Lost 13 parts (2p5n4u2w) 12421 | -5/Upper Caves | Spotted B-75 Beast 12868 | -5/Upper Caves | Ambushed by wild Derelicts 12919 | -5/Upper Caves | Lost 4 parts (1p1n1u1w) 13347 | -5/Upper Caves | Attracted the attention of an 0b10 checkpoint 13356 | -5/Upper Caves | Entered another Upper Caves area 13357 | -5/Upper Caves | Identified exit to Factory 13785 | -5/Upper Caves | Attacked by a faux Warlord 13990 | -5/Upper Caves | Discovered new exit (range 16) 14015 | -5/Upper Caves | Entered Zhirov 14015 | -5/Zhirov | Discovered new exit (range 4) 14045 | -5/Zhirov | Met Zhirov 14192 | -5/Zhirov | Found Alien Artifact 14212 | -5/Zhirov | Found Alien Artifact 14212 | -5/Zhirov | Identified Integrated Dissipator 14212 | -5/Zhirov | Installed Integrated Dissipator, increased core heat dissipation (+20) 14293 | -5/Zhirov | Learned location of Quarantine (-2) 14293 | -5/Zhirov | Learned location of Testing (-3) 14293 | -5/Zhirov | Learned location of Command (-1) 14322 | -5/Zhirov | Zhirov requested help retrieving the SGEMP Prototype 14452 | -5/Zhirov | Cloak Generator disabled 14452 | -5/Zhirov | Attacked by Zhirov 14470 | -5/Zhirov | Destroyed Svarog 14476 | -5/Zhirov | Zhirov detonated his lab 14507 | -5/Zhirov | Lost 8 parts (2p2n2u2w) 14931 | -5/Zhirov | Entered Proximity Caves 15371 | -4/Proximity Caves | Identified Transdimensional Reconstructor 15371 | -4/Proximity Caves | Warped through subspace 15372 | -4/Proximity Caves | Core integrity fell below 20% 15401 | -4/Proximity Caves | Lost 5 parts (1n2u2w) 15558 | -4/Proximity Caves | Spotted B-86 Titan 15658 | -4/Proximity Caves | Build established: Mutant 16071 | -4/Proximity Caves | Destroyed by B-86 Titan with Hardcell Cannon Last Messages --------------- 15704_ System corrupted: Heat flow error (+109). 15719_ System corrupted: Component data lost. 15738_ System corrupted: Substantial component data lost. 15753_ System corrupted: Component data lost. 15784_ System corrupted: Substantial component data lost. 15941_ QQ>NWOZVNOMXUCTAXWDUX&JBA1BH7S 16012_ System corrupted: Component data lost. 16047_ System corrupted: Energy discharge (-159). 16057_ Acquired 5 matter. 16061_ Penetrated by Slug. 16061_ Slug penetrates Wall. 16064_ Lgt. Treads destroyed. 16064_ Fusion Reactor destroyed. 16064_ Imp. Cooling System destroyed. 16064_ Knocked back. 16064_ Penetrated by Slug. 16064_ Mapping Drone Bay destroyed. 16065_ Acquired 5 matter. 16067_ Penetrated by Slug. Map ----- +----------------------------------------------------+ | ?????#?????#????????????????#??????????#??????#??? | | ?##??##?????#???????????????????????#????????????? | | ??##???????#????????????#?????????#???????????#??? | | ?#?#??###????????#????????????#??????????????????? | | ####?????##????#?##?????????????????????????#????? | | ###?#?#?#??????#?#????######????#????????????????? | | ##???#####??###?????# #########??###????????? | | ######????#?##????##?# ## #### ###??????? | | #??###?##?##????# ## #####??# | | ##?##?#?###?#?##?# #### | | # ####?###?###??#####" | | ##?##?#?#?#??#### ## ### #### | | ## #?###?##??###?## ### # ##?# | | #### ##??##?##?######"##?# ### #### | | ##?## ##??####?#?#### ##### # # | | ??###########?####### ##??# # ##### ## | | #?###### ####?#??#### #?#?## ###### ## | | ##?## ##?#######?# ####### ### ### | | #### # ####?#????## ##### ##?## #?## | | ## ######??# ##### ##??### ####### | | # # # ### ##?## ###; ###?#?### ##?? | | # ### #### ## ""# #?######## #?? | | # # ## # ## ###% #### #### ###?? | | # # ####% ### ##???? | | ### ### #????? | | #### ##?# @ %; ##????? | | # ##?# #??# ####;;% BB ##?????? | | ##### ## #### #?#### ######??????? | | # ##?##### ## # ##?### #?#?????????? | | #### ###### ######??# #???#??????? | | ### #??## ##??#?##? ? ## ##??????????? | | # #?## ###????? #??#?#?????????? | | #### ## ####??? ? #?#???#????????? | | # ### # ###??# #????#?????????? | | ## ##?## # # ##???? ??#???????????? | | ?#?## ##?#?# #????#???????? | | ? ##??### # ###????# #??#?????????? | | ######?## # #?#??## #?????????????? | | # #??## #?## #####??#?## #???? ????????? | | ???#?# #### #?#?#????## ?????????????? | | ?#??## # # #???#?#??### ?????????????? | | ????# #?#????#??###### ?????????????? | | ???# ### # ##?##??#????????? ??????????????? | | ???######??#######??#?????????##?????????????????? | | ????????????????#????????????????????????????????? | | ???????????????????????#?????????????????????????? | | ?????????????????????????????????????????????????? | | ?????????????????????????????????????????????????? | | ?????????????????????????????????????????????????? | | ?????????????????????????????????????????????????? | +----------------------------------------------------+ Best States ------------- Heat Dissipation 118 Energy Generation 34 Energy Capacity 795 Matter Stores 300 Matter Capacity 300 Sight Range 16 Robot Scan Range 20 Terrain Scan Density 10 Jamming Range 14 Armor Coverage 1800 Evasion (%) 73 Targeting Accuracy 11 Target Analysis 5 Recoil Reduction 6 Particle Charging 30 Offensive Hacking 10 Defensive Hacking 20 Item Schematics ----------------- Huge Storage Unit | -10/Mines | Hacked Med. Storage Unit | -9/Materials | Scanalyzed Lgt. Regenerative Plating | -7/Data Miner | Free Combat Drone Bay | -7/Data Miner | Free Cld. Aerolev Unit | -7/Data Miner | Free Exp. Targeting Computer | -7/Data Miner | Free Antimatter Cannon | -7/Data Miner | Free Antigrav System | -7/Data Miner | Free Imp. Transmission Jammer | -7/Data Miner | Free Hvy. Phase Cannon | -7/Data Miner | Free Imp. Particle Charger | -7/Data Miner | Free Disruptor Cannon | -7/Data Miner | Free Adv. Shield Generator | -7/Data Miner | Free Centrium Heavy Treads | -5/Factory | Scanalyzed Assault Drone Bay | -5/Zhirov | Free Exp. Heat Sink | -5/Zhirov | Free Exp. Optical Array | -5/Zhirov | Free Imp. Arc Thrower | -5/Zhirov | Free Robot Schematics ------------------ O-24 Administrator | -7/Data Miner | Free Y-54 Guardian | -7/Data Miner | Free L-41 Fighter | -7/Data Miner | Free R-10 Processor | -7/Data Miner | Free D-63 Destroyer | -7/Data Miner | Free B-60 Warrior | -7/Data Miner | Free Fabricated ------------ Centrium Heavy Treads | x1 | -5/Factory Alien Tech Used ----------------- Integrated Dissipator Transdimensional Reconstructor Achievements -------------- Exposed Prison Break Project G-00 Challenges ------------ None Game ------ Seed IonAdvancedKit Manual? 0 Play Time 02:52:15 Cumulative 77.1 hours Start 2022.09.13 @ 14:27:05 End 2022.09.13 @ 17:35:48 Sessions 5 Manual Loads 0 Difficulty Rogue Special Mode None Game No. 106 Rogue 106 Adventurer 0 Explorer 0 Win Type - Total 0 Types 0/0/0/0/0/0/0/0/0 Lore% 56 Gallery% 57 Achievement% 45 Wizard Run 0 Options --------- ASCII 0 Keyboard 0 Movement Numpad Keybinds 0 Fullscreen 1 Font 18/SmallcapsGlow Map View 76x50 Tactical HUD 1 Map Filters NONE Filters NONE Steam 1 RUN: 36a5874a-443b-4d30-ac37-8881c802c445